bitfinex/quotes_SOLUSD_20230401
["timestamp","ask_amount","ask_price","bid_price","bid_amount"]
[1680362241278,113.6344,20.939,20.929,19.111]
[1680362241473,113.6344,20.939,20.93,10.0]
[1680362242874,27.2,20.94,20.93,10.0]
[1680362246983,133.7342,20.945,20.93,10.0]
[1680362248883,133.7342,20.945,20.931,17.0]
[1680362249088,133.7342,20.945,20.932,10.0]
[1680362250305,133.7342,20.945,20.934,10.0]
[1680362252972,114.6152,20.945,20.934,10.0]
[1680362255686,114.6152,20.945,20.931,10.0]
[1680362255876,10.0,20.942,20.931,10.0]
[1680362256490,10.0,20.942,20.93,10.0]
[1680362256696,26.95,20.94,20.93,10.0]
[1680362260781,26.95,20.94,20.928,29.112]
[1680362264412,26.95,20.94,20.93,10.0]
[1680362265808,26.95,20.94,20.932,19.109]
[1680362267388,10.0,20.939,20.932,19.109]
[1680362268310,26.95,20.94,20.932,19.109]
[1680362272106,115.6956,20.944,20.934,10.0]
[1680362272297,27.14,20.94,20.932,19.109]
[1680362273194,27.14,20.94,20.933,10.0]
[1680362277015,115.6956,20.944,20.933,10.0]
[1680362278109,115.6956,20.944,20.932,19.109]
[1680362278305,26.95,20.94,20.932,19.109]
[1680362281291,125.6956,20.944,20.932,19.109]
[1680362281292,115.6956,20.944,20.932,19.109]
[1680362281798,115.6956,20.944,20.933,10.0]
[1680362283813,115.6956,20.944,20.934,17.0]
[1680362284112,115.6956,20.944,20.935,10.0]
[1680362286995,115.6956,20.944,20.933,10.0]
[1680362289503,10.0,20.943,20.932,19.109]
[1680362289803,26.97,20.94,20.932,19.109]
[1680362296926,53.92,20.94,20.932,19.109]
[1680362297307,10.0,20.939,20.932,19.109]
[1680362297707,10.0,20.939,20.928,19.112]
[1680362300723,17.0,20.938,20.928,19.112]
[1680362301414,10.0,20.937,20.928,19.112]
[1680362301616,17.0,20.936,20.928,19.112]
[1680362301814,10.0,20.935,20.928,19.112]
[1680362309525,17.0,20.936,20.928,19.112]
[1680362311127,53.92,20.94,20.928,19.112]
[1680362311311,17.0,20.939,20.929,10.0]
[1680362311627,26.95,20.94,20.932,19.109]
[1680362315426,10.0,20.938,20.932,19.109]
[1680362316134,10.0,20.936,20.932,19.109]
[1680362319636,10.0,20.938,20.932,19.109]
[1680362319929,17.0,20.937,20.932,19.109]
[1680362322115,10.0,20.938,20.932,19.109]
[1680362323620,10.0,20.938,20.928,57.339]
[1680362323832,10.0,20.936,20.928,19.113]
[1680362330236,17.0,20.937,20.928,19.113]
[1680362331129,10.0,20.936,20.923,49.117]
[1680362331443,17.0,20.935,20.924,10.0]
[1680362331632,17.0,20.935,20.925,20.0]
[1680362337732,17.0,20.935,20.922,119.3576]
[1680362338035,26.95,20.93,20.922,119.3576]
[1680362348847,26.95,20.93,20.923,10.0]
[1680362349940,17.0,20.935,20.923,10.0]
[1680362352654,54.15,20.94,20.923,10.0]
[1680362352655,114.303,20.938,20.923,10.0]
[1680362352961,20.0,20.937,20.923,10.0]
[1680362354053,10.0,20.936,20.923,10.0]
[1680362354461,10.0,20.934,20.923,10.0]
[1680362361468,17.0,20.935,20.923,10.0]
[1680362363666,26.95,20.93,20.923,10.0]
[1680362364047,26.95,20.93,20.922,19.118]
[1680362370274,26.95,20.93,20.923,10.0]
[1680362373258,26.95,20.93,20.922,19.118]
[1680362377790,26.95,20.93,20.921,10.0]
[1680362377969,26.95,20.93,20.923,6.77255694]
[1680362385677,17.0,20.929,20.923,6.77255694]
[1680362388284,53.9,20.93,20.923,6.77255694]
[1680362397401,21.62,20.93,20.923,6.77255694]
[1680362403401,20.0,20.937,20.923,25.88855694]
[1680362403797,20.0,20.937,20.926,19.114]
[1680362404197,20.0,20.937,20.927,10.0]
[1680362411711,20.0,20.937,20.926,16.77158601]
[1680362418427,20.0,20.937,20.926,6.77158601]
[1680362420915,17.0,20.936,20.926,6.77158601]
[1680362421117,10.0,20.935,20.926,6.77158601]
[1680362421299,17.0,20.934,20.926,6.77158601]
[1680362421719,10.0,20.933,20.926,6.77158601]
[1680362421897,17.0,20.932,20.926,6.77158601]
[1680362430911,10.0,20.931,20.926,6.77158601]
[1680362431111,17.0,20.93,20.926,6.77158601]
[1680362431317,10.0,20.929,20.926,6.77158601]
[1680362433416,10.0,20.931,20.926,6.77158601]
[1680362433619,17.0,20.93,20.926,6.77158601]
[1680362434224,10.0,20.933,20.926,6.77158601]
[1680362434525,17.0,20.932,20.926,6.77158601]
[1680362436634,17.0,20.932,20.919,6.64882822]
[1680362436832,27.18,20.93,20.919,6.64882822]
[1680362448747,10.0,20.928,20.919,6.64882822]
[1680362448931,17.0,20.929,20.919,6.64882822]
[1680362450046,27.18,20.93,20.919,6.64882822]
[1680362451838,20.0,20.937,20.921,10.0]
[1680362452059,20.0,20.937,20.925,19.115]
[1680362452246,20.0,20.936,20.926,10.0]
[1680362452826,20.0,20.937,20.926,10.0]
[1680362453033,20.0,20.938,20.926,10.0]
[1680362455951,27.0,20.937,20.926,10.0]
[1680362456244,20.0,20.936,20.926,10.0]
[1680362457244,20.0,20.936,20.923,10.0]
[1680362457431,27.18,20.93,20.923,10.0]
[1680362458654,20.0,20.936,20.924,19.116]
[1680362458860,20.0,20.937,20.925,10.0]
[1680362459164,20.0,20.938,20.925,10.0]
[1680362480163,10.0,20.936,20.925,10.0]
[1680362485071,10.0,20.937,20.925,10.0]
[1680362485278,20.0,20.936,20.925,10.0]
[1680362485477,116.3731,20.939,20.926,56.114]
[1680362485879,21.57,20.94,20.926,56.114]
[1680362486489,21.57,20.94,20.927,15.3660336]
[1680362486798,21.57,20.94,20.93,19.11]
[1680362487092,21.57,20.94,20.931,10.0]
[1680362492499,26.93,20.94,20.931,10.0]
[1680362502794,26.93,20.94,20.93,19.11]
[1680362506786,26.93,20.94,20.931,10.0]
[1680362509988,26.93,20.94,20.93,19.11]
[1680362517107,54.09,20.94,20.93,19.11]
[1680362525400,27.16,20.94,20.93,19.11]
[1680362525600,27.16,20.94,20.931,10.0]
[1680362532213,27.16,20.94,20.93,19.11]
[1680362532418,54.32,20.94,20.93,19.11]
[1680362538727,54.32,20.94,20.931,10.0]
[1680362538928,27.16,20.94,20.931,10.0]
[1680362540430,115.6956,20.944,20.932,17.0]
[1680362540608,53.84,20.95,20.935,19.106]
[1680362540814,53.84,20.95,20.936,27.0]
[1680362541216,20.0,20.948,20.936,27.0]
[1680362541709,27.18090671,20.948,20.936,27.0]
[1680362542628,20.0,20.948,20.936,27.0]
[1680362542927,20.0,20.949,20.936,27.0]
[1680362552613,10.0,20.948,20.936,27.0]
[1680362552817,20.0,20.947,20.936,27.0]
[1680362559131,20.0,20.948,20.936,27.0]
[1680362561329,20.0,20.949,20.936,27.0]
[1680362562332,21.55,20.95,20.937,20.0]
[1680362562532,21.55,20.95,20.938,27.0]
[1680362563738,21.55,20.95,20.939,19.102]
[1680362563943,21.55,20.95,20.94,17.0]
[1680362564539,21.55,20.95,20.941,10.0]
[1680362564731,21.55,20.95,20.943,10.0]
[1680362565134,21.55,20.95,20.945,10.0]
[1680362565348,128.6423,20.954,20.945,10.0]
[1680362567931,20.0,20.954,20.945,10.0]
[1680362568249,20.0,20.954,20.947,10.0]
[1680362569545,20.0,20.954,20.943,6.00675433]
[1680362569849,21.55,20.95,20.94,10.0]
[1680362570836,21.55,20.95,20.942,17.0]
[1680362571250,21.55,20.95,20.943,10.0]
[1680362571451,21.55,20.95,20.944,17.0]
[1680362572451,26.98,20.95,20.945,10.0]
[1680362572649,20.0,20.954,20.946,17.0]
[1680362573337,20.0,20.954,20.94,10.0]
[1680362573539,54.03,20.95,20.936,10.0]
[1680362574850,54.03,20.95,20.939,17.0]
[1680362575453,54.03,20.95,20.94,10.0]
[1680362579954,27.05,20.95,20.94,10.0]
[1680362580255,27.05,20.95,20.942,10.0]
[1680362580455,27.05,20.95,20.943,17.0]
[1680362580658,27.05,20.95,20.944,10.0]
[1680362580957,27.05,20.95,20.945,17.0]
[1680362581256,109.5636,20.955,20.945,17.0]
[1680362582457,109.5636,20.955,20.944,10.0]
[1680362582756,27.13,20.95,20.942,10.0]
[1680362588649,27.13,20.95,20.943,17.0]
[1680362588856,109.5636,20.955,20.943,17.0]
[1680362589251,109.5636,20.955,20.944,10.0]
[1680362589451,109.5636,20.955,20.945,17.0]
[1680362589650,109.5636,20.955,20.946,10.0]
[1680362589851,109.5636,20.955,20.942,10.0]
[1680362590052,26.87,20.95,20.942,10.0]
[1680362590468,26.87,20.95,20.944,10.0]
[1680362596255,68.68787295,20.96,20.945,19.097]
[1680362596461,68.58792402,20.96,20.945,43.88809153]
[1680362596675,26.99,20.96,20.947,6.5729681]
[1680362596873,26.99,20.96,20.949,19.093]
[1680362597081,26.99,20.96,20.951,10.0]
[1680362597381,26.99,20.96,20.953,10.0]
[1680362597761,26.99,20.96,20.954,17.0]
[1680362597963,26.99,20.96,20.955,10.0]
[1680362598187,26.99,20.96,20.956,17.0]
[1680362598396,109.9044,20.964,20.956,17.0]
[1680362598770,109.9044,20.964,20.957,10.0]
[1680362599066,109.9044,20.964,20.955,29.087]
[1680362599268,26.99,20.96,20.951,10.0]
[1680362600674,26.99,20.96,20.953,10.0]
[1680362600873,26.99,20.96,20.954,36.088]
[1680362601070,26.99,20.96,20.955,10.0]
[1680362602485,26.99,20.96,20.954,19.088]
[1680362603887,26.99,20.96,20.956,10.0]
[1680362604087,109.9044,20.964,20.956,10.0]
[1680362606580,109.9044,20.964,20.954,19.088]
[1680362606775,26.99,20.96,20.954,19.088]
[1680362607380,26.99,20.96,20.951,10.0]
[1680362607588,26.99,20.96,20.953,19.09]
[1680362607777,26.99,20.96,20.954,10.0]
[1680362608785,26.99,20.96,20.955,17.0]
[1680362608987,26.99,20.96,20.956,10.0]
[1680362609188,109.9044,20.964,20.956,10.0]
[1680362609380,109.9044,20.964,20.953,19.09]
[1680362609580,26.87,20.96,20.953,19.09]
[1680362610675,26.87,20.96,20.954,17.0]
[1680362610880,26.87,20.96,20.955,10.0]
[1680362611085,26.87,20.96,20.956,17.0]
[1680362611286,109.9044,20.964,20.956,17.0]
[1680362611486,109.9044,20.964,20.957,10.0]
[1680362613287,109.9044,20.964,20.958,17.0]
[1680362613495,109.9044,20.964,20.959,10.0]
[1680362615092,80.3211,20.966,20.959,10.0]
[1680362615298,80.3211,20.966,20.96,17.0]
[1680362615688,26.99,20.97,20.96,17.0]
[1680362615886,26.99,20.97,20.961,10.0]
[1680362616295,26.99,20.97,20.962,17.0]
[1680362619399,26.99,20.97,20.961,10.0]
[1680362625306,26.99,20.97,20.96,19.083]
[1680362628910,54.08,20.97,20.955,19.088]
[1680362629107,17.0,20.969,20.956,20.0]
[1680362629301,54.08,20.97,20.956,20.0]
[1680362629709,10.0,20.969,20.957,10.0]
[1680362630208,10.0,20.969,20.958,17.0]
[1680362630413,27.09,20.97,20.958,36.085]
[1680362630595,27.09,20.97,20.953,4.67637317]
[1680362630596,10.0,20.968,20.953,19.089]
[1680362630802,27.13,20.96,20.953,19.089]
[1680362638117,27.13,20.96,20.949,43.50725108]
[1680362639622,27.13,20.96,20.949,29.093]
[1680362643001,27.13,20.96,20.95,17.0]
[1680362643207,27.13,20.96,20.953,19.09]
[1680362643409,27.13,20.96,20.954,10.0]
[1680362645220,27.13,20.96,20.953,19.09]
[1680362650314,27.13,20.96,20.954,17.0]
[1680362650516,110.2796,20.964,20.955,10.0]
[1680362651133,110.2796,20.964,20.956,17.0]
[1680362654338,10.0,20.963,20.953,19.09]
[1680362654535,26.98,20.96,20.953,19.09]
[1680362654732,26.98,20.96,20.937,35.70989129]
[1680362654733,26.98,20.96,20.949,10.0]
[1680362654933,26.98,20.96,20.948,29.094]
[1680362658132,10.0,20.959,20.948,29.094]
[1680362660642,26.98,20.96,20.948,29.094]
[1680362660937,26.98,20.96,20.95,10.0]
[1680362662535,26.98,20.96,20.949,17.0]
[1680362665137,26.98,20.96,20.952,19.091]
[1680362669327,110.2796,20.964,20.953,27.0]
[1680362669529,110.2796,20.964,20.955,19.087]
[1680362671344,110.2796,20.964,20.956,10.0]
[1680362671855,117.0934,20.966,20.957,17.0]
[1680362672031,117.0934,20.966,20.959,19.084]
[1680362672235,117.0934,20.966,20.96,10.0]
[1680362674152,117.0934,20.966,20.959,19.084]
[1680362675742,117.0934,20.966,20.956,10.0]
[1680362677155,117.0934,20.966,20.955,19.088]
[1680362677363,117.0934,20.966,20.956,17.0]
[1680362679147,10.0,20.965,20.951,29.091]
[1680362679347,10.0,20.965,20.952,17.0]
[1680362685864,10.0,20.965,20.953,10.0]
[1680362688665,10.0,20.965,20.952,17.0]
[1680362690079,10.0,20.965,20.951,19.091]
[1680362690080,26.98,20.96,20.951,19.091]
[1680362690653,26.98,20.96,20.949,10.0]
[1680362697265,26.98,20.96,20.951,19.092]
[1680362697469,26.98,20.96,20.952,10.0]
[1680362705173,10.0,20.965,20.954,10.0]
[1680362708381,10.0,20.965,20.952,10.0]
[1680362708583,10.0,20.965,20.953,17.0]
[1680362710885,10.0,20.965,20.951,29.092]
[1680362711481,26.99,20.96,20.947,13.95911915]
[1680362711670,26.99,20.96,20.946,29.096]
[1680362711868,10.0,20.959,20.947,20.0]
[1680362712676,10.0,20.959,20.948,10.0]
[1680362712877,26.99,20.96,20.948,10.0]
[1680362713088,26.99,20.96,20.95,10.0]
[1680362715886,26.99,20.96,20.951,17.0]
[1680362716180,26.99,20.96,20.952,10.0]
[1680362724507,26.99,20.96,20.951,17.0]
[1680362728201,20.0,20.959,20.945,19.097]
[1680362728406,37.0,20.959,20.944,111.8786]
[1680362728707,10.0,20.958,20.944,111.8786]
[1680362729003,10.0,20.956,20.944,111.8786]
[1680362730398,10.0,20.956,20.942,10.0]
[1680362730597,10.0,20.956,20.943,17.0]
[1680362746428,10.0,20.958,20.943,17.0]
[1680362746604,20.0,20.957,20.943,17.0]
[1680362746810,20.0,20.957,20.945,19.097]
[1680362747105,114.5131,20.959,20.946,37.0]
[1680362747311,114.5131,20.959,20.947,10.0]
[1680362747521,114.5131,20.959,20.948,17.0]
[1680362748021,27.05,20.96,20.949,10.0]
[1680362748204,27.05,20.96,20.95,17.0]
[1680362748405,27.05,20.96,20.951,10.0]
[1680362754907,27.05,20.96,20.95,17.0]
[1680362756126,27.05,20.96,20.951,10.0]
[1680362756316,27.05,20.96,20.952,17.0]
[1680362762424,113.0451,20.965,20.953,10.0]
[1680362762627,113.0451,20.965,20.954,17.0]
[1680362762929,113.0451,20.965,20.955,10.0]
[1680362763113,113.0451,20.965,20.956,17.0]
[1680362764030,113.0451,20.965,20.955,10.0]
[1680362764328,27.13,20.96,20.953,10.0]
[1680362764512,27.13,20.96,20.954,17.0]
[1680362764713,27.13,20.96,20.953,17.0]
[1680362765529,27.13,20.96,20.952,19.09]
[1680362765730,27.13,20.96,20.948,7.23954333]
[1680362766216,10.0,20.959,20.947,29.095]
[1680362767123,10.0,20.959,20.948,17.0]
[1680362769334,10.0,20.959,20.947,19.095]
[1680362771132,10.0,20.957,20.947,19.095]
[1680362778425,10.0,20.957,20.944,115.0591]
[1680362778727,26.98,20.95,20.944,115.0591]
[1680362779738,26.98,20.95,20.945,17.0]
[1680362779925,10.0,20.957,20.946,10.0]
[1680362780124,10.0,20.959,20.946,10.0]
[1680362780325,20.0,20.958,20.946,10.0]
[1680362783341,10.0,20.957,20.946,10.0]
[1680362786438,20.0,20.958,20.946,10.0]
[1680362789140,10.0,20.957,20.946,10.0]
[1680362791540,20.0,20.958,20.946,10.0]
[1680362799349,20.0,20.958,20.947,17.0]
[1680362806148,54.18,20.96,20.947,17.0]
[1680362806354,27.13,20.96,20.947,17.0]
[1680362806550,27.13,20.96,20.948,10.0]
[1680362806752,27.13,20.96,20.949,17.0]
[1680362806956,27.13,20.96,20.95,10.0]
[1680362807356,10.0,20.962,20.95,10.0]
[1680362807561,21.69,20.96,20.95,10.0]
[1680362810267,21.69,20.96,20.948,10.0]
[1680362810762,21.69,20.96,20.949,17.0]
[1680362810952,21.69,20.96,20.948,10.0]
[1680362810953,10.0,20.959,20.948,10.0]
[1680362811153,10.0,20.959,20.949,17.0]
[1680362812757,10.0,20.959,20.946,43.05425213]
[1680362813077,10.0,20.959,20.947,37.0]
[1680362815254,10.0,20.959,20.947,20.0]
[1680362817761,17.0,20.958,20.947,20.0]
[1680362818256,17.0,20.958,20.944,112.4661]
[1680362818462,10.0,20.956,20.944,112.4661]
[1680362818768,10.0,20.954,20.942,19.1]
[1680362818966,26.94,20.95,20.942,19.1]
[1680362825576,237.607,20.955,20.942,19.1]
[1680362825772,237.607,20.955,20.943,17.0]
[1680362825980,237.607,20.955,20.945,19.096]
[1680362826186,237.607,20.955,20.946,17.0]
[1680362829280,237.607,20.955,20.947,10.0]
[1680362833594,118.8128,20.955,20.947,10.0]
[1680362833790,118.8128,20.955,20.948,17.0]
[1680362834388,14.60690347,20.965,20.948,17.0]
[1680362834594,27.12,20.97,20.95,6.51684267]
[1680362834595,54.01,20.97,20.95,6.51684267]
[1680362834804,10.0,20.969,20.951,27.0]
[1680362834994,10.0,20.969,20.952,10.0]
[1680362835179,10.0,20.969,20.953,17.0]
[1680362835383,10.0,20.969,20.954,10.0]
[1680362835582,10.0,20.969,20.955,17.0]
[1680362835876,10.0,20.969,20.956,10.0]
[1680362836181,26.89,20.97,20.956,10.0]
[1680362836379,26.89,20.97,20.958,10.0]
[1680362838489,10.0,20.969,20.958,10.0]
[1680362838884,26.89,20.97,20.958,10.0]
[1680362840186,26.89,20.97,20.957,17.0]
[1680362840489,26.89,20.97,20.956,10.0]
[1680362840893,10.0,20.969,20.956,10.0]
[1680362844086,10.0,20.972,20.957,17.0]
[1680362844285,10.0,20.972,20.958,10.0]
[1680362844488,27.12,20.97,20.958,10.0]
[1680362845197,20.0,20.969,20.96,10.0]
[1680362847794,27.12,20.97,20.96,10.0]
[1680362854709,27.12,20.97,20.958,10.0]
[1680362854906,27.12,20.97,20.959,17.0]
[1680362855806,26.62,20.97,20.96,10.0]
[1680362857100,26.62,20.97,20.959,17.0]
[1680362857314,26.62,20.97,20.958,10.0]
[1680362857608,26.62,20.97,20.957,19.086]
[1680362857797,10.0,20.969,20.957,19.086]
[1680362859095,2.5,20.969,20.958,10.0]
[1680362859498,2.5,20.969,20.957,19.086]
[1680362865014,2.5,20.969,20.958,10.0]
[1680362866797,26.62,20.97,20.958,10.0]
[1680362869112,10.0,20.969,20.958,10.0]
[1680362870010,10.0,20.969,20.957,19.086]
[1680362872422,10.0,20.969,20.958,10.0]
[1680362876513,26.62,20.97,20.958,10.0]
[1680362877016,53.52,20.97,20.958,10.0]
[1680362877214,10.0,20.969,20.958,10.0]
[1680362877412,10.0,20.969,20.957,19.086]
[1680362879623,10.0,20.969,20.958,10.0]
[1680362879919,53.52,20.97,20.958,10.0]
[1680362882513,21.48,20.97,20.958,10.0]
[1680362885916,10.0,20.969,20.958,10.0]
[1680362887730,21.48,20.97,20.958,10.0]
[1680362888630,10.0,20.969,20.958,10.0]
[1680362892335,10.0,20.969,20.957,19.086]
[1680362894421,10.0,20.967,20.957,19.086]
[1680362894622,17.0,20.966,20.957,19.086]
[1680362894823,17.0,20.966,20.953,19.09]
[1680362895023,21.48,20.96,20.953,19.09]
[1680362897318,27.07,20.96,20.953,19.09]
[1680362901422,27.07,20.96,20.954,27.0]
[1680362903439,235.1856,20.966,20.954,27.0]
[1680362903630,116.3591,20.966,20.954,27.0]
[1680362911127,20.0,20.969,20.959,10.0]
[1680362922561,20.0,20.969,20.958,17.0]
[1680362924060,27.11,20.97,20.959,10.0]
[1680362927375,27.11,20.97,20.961,10.0]
[1680362929762,27.11,20.97,20.959,10.0]
[1680362930066,27.11,20.97,20.96,17.0]
[1680362932166,26.61,20.97,20.96,17.0]
[1680362934771,26.11,20.97,20.96,17.0]
[1680362939168,26.11,20.97,20.959,10.0]
[1680362939368,26.11,20.97,20.96,17.0]
[1680362939749,10.0,20.969,20.957,19.086]
[1680362950583,10.0,20.969,20.958,10.0]
[1680362954277,10.0,20.969,20.957,19.086]
[1680362965969,21.58,20.97,20.957,19.086]
[1680362966490,21.58,20.97,20.958,10.0]
[1680362967188,21.58,20.97,20.961,19.082]
[1680362967897,21.58,20.97,20.962,10.0]
[1680362977281,21.58,20.97,20.961,19.082]
[1680362990493,17.0,20.969,20.957,19.086]
[1680362990687,30.0,20.968,20.957,19.086]
[1680362992309,20.0,20.968,20.958,10.0]
[1680363001119,20.0,20.969,20.959,17.0]
[1680363001314,20.0,20.969,20.96,10.0]
[1680363001615,21.58,20.97,20.96,10.0]
[1680363005117,21.58,20.97,20.958,10.0]
[1680363005424,21.58,20.97,20.96,10.0]
[1680363006422,21.58,20.97,20.961,17.0]
[1680363008325,21.58,20.97,20.96,10.0]
[1680363008627,21.58,20.97,20.958,19.085]
[1680363013231,21.58,20.97,20.959,10.0]
[1680363019317,21.58,20.97,20.96,17.0]
[1680363019739,21.58,20.97,20.961,10.0]
[1680363020932,21.58,20.97,20.958,19.085]
[1680363021140,10.0,20.968,20.958,19.085]
[1680363022238,10.0,20.969,20.958,19.085]
[1680363022828,21.58,20.97,20.958,19.085]
[1680363023228,21.58,20.97,20.959,10.0]
[1680363027246,21.58,20.97,20.961,10.0]
[1680363037858,21.58,20.97,20.961,29.082]
[1680363044452,21.58,20.97,20.963,10.0]
[1680363048355,21.58,20.97,20.965,19.079]
[1680363048550,77.0677,20.977,20.965,19.079]
[1680363048864,77.0677,20.977,20.966,10.0]
[1680363050754,10.0,20.976,20.966,10.0]
[1680363051165,10.0,20.976,20.963,10.0]
[1680363051468,21.68,20.97,20.963,10.0]
[1680363057071,21.68,20.97,20.964,17.0]
[1680363057854,21.68,20.97,20.963,10.0]
[1680363058256,21.68,20.97,20.964,17.0]
[1680363058562,21.68,20.97,20.965,10.0]
[1680363061166,109.525,20.975,20.965,10.0]
[1680363061360,109.525,20.975,20.966,17.0]
[1680363065375,21.68,20.98,20.967,19.077]
[1680363065577,21.68,20.98,20.968,17.0]
[1680363068365,21.68,20.98,20.967,19.077]
[1680363068575,10.0,20.979,20.967,19.077]
[1680363072164,17.0,20.978,20.967,19.077]
[1680363072565,10.0,20.979,20.967,19.077]
[1680363074774,21.68,20.98,20.968,17.0]
[1680363075083,21.68,20.98,20.969,10.0]
[1680363076297,21.68,20.98,20.972,19.072]
[1680363081270,21.68,20.98,20.973,17.0]
[1680363081484,21.68,20.98,20.974,10.0]
[1680363081670,21.68,20.98,20.975,36.069]
[1680363081868,119.4478,20.984,20.975,36.069]
[1680363082572,19.07028,20.986,20.976,10.0]
[1680363082890,19.07028,20.986,20.978,10.0]
[1680363083669,83.6987,20.988,20.978,10.0]
[1680363083873,20.0,20.987,20.978,10.0]
[1680363084268,20.0,20.987,20.976,10.0]
[1680363084474,10.0,20.986,20.974,10.0]
[1680363084775,17.0,20.985,20.971,10.0]
[1680363084982,10.0,20.986,20.971,10.0]
[1680363085181,10.0,20.986,20.972,17.0]
[1680363085492,10.0,20.986,20.973,10.0]
[1680363086391,10.0,20.986,20.974,17.0]
[1680363086893,20.0,20.987,20.975,10.0]
[1680363087089,20.0,20.987,20.974,17.0]
[1680363087295,20.0,20.987,20.973,10.0]
[1680363087597,10.0,20.986,20.973,10.0]
[1680363089602,10.0,20.986,20.971,10.0]
[1680363089897,10.0,20.986,20.972,17.0]
[1680363090889,10.0,20.986,20.973,10.0]
[1680363091880,10.0,20.986,20.971,10.0]
[1680363092080,10.0,20.986,20.972,17.0]
[1680363095998,27.05,20.98,20.972,17.0]
[1680363101288,27.05,20.98,20.973,10.0]
[1680363107118,20.0,20.987,20.974,17.0]
[1680363107315,20.0,20.987,20.975,10.0]
[1680363107617,20.0,20.987,20.976,17.0]
[1680363107816,20.0,20.987,20.977,10.0]
[1680363108130,20.0,20.987,20.976,17.0]
[1680363108421,10.0,20.986,20.976,17.0]
[1680363109118,30.0,20.987,20.976,17.0]
[1680363111220,20.0,20.987,20.976,17.0]
[1680363113122,20.0,20.987,20.977,10.0]
[1680363115910,20.0,20.987,20.978,17.0]
[1680363119324,20.0,20.987,20.974,6.50729519]
[1680363119531,20.0,20.987,20.961,10.0]
[1680363119532,26.85,20.98,20.961,10.0]